[Event "Chinese Championship-B Women 2024"]
[Site "Liaocheng"]
[Date "2024.04.24"]
[Round "2.10"]
[White "Liu, Youyin"]
[Black "Zhou, Lanqier"]
[Result "0-1"]
[WhiteElo "1840"]
[BlackElo "1654"]
[PlyCount "84"]
[EventDate "2024.04.24"]
[EventType "swiss"]
[EventCountry "CHN"]
[TimeControl "5400+30"]

1. e4 {[%emt 0:00:02]} e5 {[%emt 0:00:10]} 2. Nf3 {[%emt 0:00:08]} Nc6 {[%emt 0:00:05]} 3. Bb5 {[%emt 0:00:09]} a6 {[%emt 0:01:18]} 4. Ba4 {[%emt 0:00:06]} b5 {[%emt 0:01:21]} 5. Bb3 {[%emt 0:00:06]} Nf6 {[%emt 0:01:25]} 6. O-O {[%emt 0:00:08]} Be7 {[%emt 0:01:38]} 7. c3 {[%emt 0:00:21]} Nxe4 {[%emt 0:08:45]} 8. Bd5 {[%emt 0:00:20]} Nf6 {[%emt 0:00:46]} 9. Bxc6 {[%emt 0:00:30]} dxc6 {[%emt 0:00:30]} 10. Nxe5 {[%emt 0:00:15]} Bb7 {[%emt 0:02:32]} 11. Qf3 {[%emt 0:04:41]} Qd5 {[%emt 0:02:49]} 12. d4 {[%emt 0:02:14]} Qxf3 {[%emt 0:06:03]} 13. Nxf3 {[%emt 0:00:07]} O-O {[%emt 0:08:58]} 14. Bg5 {[%emt 0:00:30]} c5 {[%emt 0:00:30]} 15. Re1 {[%emt 0:00:30]} Rfe8 {[%emt 0:00:30]} 16. Nbd2 {[%emt 0:00:30]} cxd4 {[%emt 0:00:30]} 17. Nxd4 {[%emt 0:00:30]} Bd6 {[%emt 0:00:30]} 18. Bxf6 {[%emt 0:00:30]} gxf6 {[%emt 0:00:30]} 19. Nf5 {[%emt 0:19:36]} Bc5 {[%emt 0:32:02]} 20. Nb3 {[%emt 0:03:10]} Bb6 {[%emt 0:00:28]} 21. Nbd4 {[%emt 0:00:30]} Re5 {[%emt 0:00:30]} 22. Ne7+ {[%emt 0:00:30]} Kf8 {[%emt 0:00:30]} 23. Nec6 {[%emt 0:00:30]} Rc5 {[%emt 0:00:30]} 24. Ne7 {[%emt 0:00:30]} Rg5 {[%emt 0:00:30]} 25. g3 {[%emt 0:00:30]} Bxd4 {[%emt 0:00:30]} 26. cxd4 {[%emt 0:29:22]} Re8 {[%emt 0:17:41]} 27. Rac1 {[%emt 0:02:34]} c6 {[%emt 0:00:23]} 28. h4 {[%emt 0:00:30]} Rh5 {[%emt 0:00:30]} 29. g4 {[%emt 0:00:30]} Rxh4 {[%emt 0:00:30]} 30. Nf5 {[%emt 0:00:30]} Rxg4+ {[%emt 0:00:30]} 31. Kf1 {[%emt 0:00:30]} Rxe1+ {[%emt 0:00:30]} 32. Rxe1 {[%emt 0:02:29]} Bc8 {[%emt 0:01:48]} 33. Nd6 {[%emt 0:00:30]} Be6 {[%emt 0:00:30]} 34. Re4 {[%emt 0:00:30]} f5 {[%emt 0:00:30]} 35. Rxg4 {[%emt 0:00:30]} fxg4 {[%emt 0:00:30]} 36. Ne4 {[%emt 0:00:30]} f5 {[%emt 0:00:30]} 37. Nc5 {[%emt 0:22:52]} Bxa2 {[%emt 0:02:20]} 38. Nxa6 {[%emt 0:00:30]} Kf7 {[%emt 0:00:30]} 39. Ke2 {[%emt 0:00:30]} Kf6 {[%emt 0:00:30]} 40. Nb4 {[%emt 0:00:30]} Bd5 {[%emt 0:00:30]} 41. Ke3 {[%emt 0:00:30]} Kg5 {[%emt 0:00:30]} 42. Nd3 {[%emt 0:00:30]} h5 {[%emt 0:00:30]} 0-1

[Event "Chinese Championship-B Women 2024"]
[Site "Liaocheng"]
[Date "2024.04.24"]
[Round "2.11"]
[White "Zhu, Zile"]
[Black "Li, Peishan"]
[Result "1/2-1/2"]
[WhiteElo "1819"]
[BlackElo "1647"]
[PlyCount "75"]
[EventDate "2024.04.24"]
[EventType "swiss"]
[EventCountry "CHN"]
[TimeControl "5400+30"]

1. d4 {[%emt 0:00:03]} Nf6 {[%emt 0:00:06]} 2. c4 {[%emt 0:00:04]} e6 {[%emt 0:00:04]} 3. Nf3 {[%emt 0:00:05]} Be7 {[%emt 0:00:08]} 4. Nc3 {[%emt 0:00:09]} d5 {[%emt 0:00:07]} 5. Bg5 {[%emt 0:00:08]} Nbd7 {[%emt 0:00:23]} 6. e3 {[%emt 0:00:12]} O-O {[%emt 0:00:17]} 7. Qc2 {[%emt 0:02:13]} b6 {[%emt 0:03:20]} 8. cxd5 {[%emt 0:00:26]} exd5 {[%emt 0:00:04]} 9. Bd3 {[%emt 0:01:03]} Bb7 {[%emt 0:00:48]} 10. O-O {[%emt 0:00:58]} c5 {[%emt 0:01:02]} 11. Ne5 {[%emt 0:02:49]} h6 {[%emt 0:05:22]} 12. Bh4 {[%emt 0:05:30]} Nxe5 {[%emt 0:02:19]} 13. dxe5 {[%emt 0:00:07]} Ng4 {[%emt 0:03:21]} 14. Bg3 {[%emt 0:03:31]} Bh4 {[%emt 0:00:35]} 15. Bf4 {[%emt 0:26:46]} Qe7 {[%emt 0:03:55]} 16. g3 {[%emt 0:09:54]} d4 {[%emt 0:11:55]} 17. exd4 {[%emt 0:06:57]} cxd4 {[%emt 0:00:01]} 18. Qe2 {[%emt 0:06:04]} dxc3 {[%emt 0:04:38]} 19. Qxg4 {[%emt 0:04:20]} cxb2 {[%emt 0:04:17]} 20. Bxh6 {[%emt 0:13:13]} Bg5 {[%emt 0:14:36]} 21. Bxg5 {[%emt 0:06:37]} bxa1=Q {[%emt 0:00:14]} 22. Bxe7 {[%emt 0:00:07]} Qxe5 {[%emt 0:00:06]} 23. Bxf8 {[%emt 0:00:05]} Rxf8 {[%emt 0:00:04]} 24. Rd1 {[%emt 0:09:30]} Re8 {[%emt 0:02:49]} 25. Bf1 {[%emt 0:00:55]} g6 {[%emt 0:02:04]} 26. Bg2 {[%emt 0:00:28]} Bxg2 {[%emt 0:00:29]} 27. Kxg2 {[%emt 0:00:02]} Qe4+ {[%emt 0:00:24]} 28. Qxe4 {[%emt 0:00:54]} Rxe4 {[%emt 0:00:01]} 29. Rd3 {[%emt 0:00:10]} Re2 {[%emt 0:00:59]} 30. Ra3 {[%emt 0:00:48]} a5 {[%emt 0:00:03]} 31. Kf3 {[%emt 0:00:19]} Rb2 {[%emt 0:00:24]} 32. Ra4 {[%emt 0:00:15]} Kg7 {[%emt 0:00:33]} 33. h4 {[%emt 0:00:28]} Rc2 {[%emt 0:01:43]} 34. Ke3 {[%emt 0:00:21]} Kf6 {[%emt 0:00:28]} 35. f3 {[%emt 0:01:02]} Rg2 {[%emt 0:00:56]} 36. Kf4 {[%emt 0:00:07]} Re2 {[%emt 0:00:24]} 37. a3 {[%emt 0:00:42]} Ra2 {[%emt 0:00:26]} 38. Kg4 {[%emt 0:00:43]} 1/2-1/2

[Event "Chinese Championship-B Women 2024"]
[Site "Liaocheng"]
[Date "2024.04.24"]
[Round "2.12"]
[White "He, Yi"]
[Black "He, Yixuan"]
[Result "1/2-1/2"]
[WhiteElo "1636"]
[BlackElo "1812"]
[PlyCount "75"]
[EventDate "2024.04.24"]
[EventType "swiss"]
[EventCountry "CHN"]
[TimeControl "5400+30"]

1. e4 {[%emt 0:00:02]} c5 {[%emt 0:01:42]} 2. Nf3 {[%emt 0:00:06]} d6 {[%emt 0:00:04]} 3. d4 {[%emt 0:00:05]} cxd4 {[%emt 0:00:04]} 4. Nxd4 {[%emt 0:00:04]} Nf6 {[%emt 0:00:02]} 5. f3 {[%emt 0:00:17]} a6 {[%emt 0:00:09]} 6. c4 {[%emt 0:00:08]} Nc6 {[%emt 0:00:13]} 7. Nc3 {[%emt 0:00:12]} g6 {[%emt 0:01:46]} 8. Be3 {[%emt 0:00:52]} Bg7 {[%emt 0:00:10]} 9. Qd2 {[%emt 0:00:12]} O-O {[%emt 0:00:42]} 10. Be2 {[%emt 0:00:16]} Bd7 {[%emt 0:03:06]} 11. O-O {[%emt 0:02:32]} Rc8 {[%emt 0:02:37]} 12. Rac1 {[%emt 0:00:47]} Qc7 {[%emt 0:05:55]} 13. Nd5 {[%emt 0:02:47]} Qd8 {[%emt 0:00:12]} 14. Nb3 {[%emt 0:04:10]} Nxd5 {[%emt 0:03:57]} 15. cxd5 {[%emt 0:00:19]} Ne5 {[%emt 0:00:39]} 16. Na5 {[%emt 0:00:40]} Rxc1 {[%emt 0:05:33]} 17. Rxc1 {[%emt 0:02:54]} b5 {[%emt 0:00:23]} 18. h3 {[%emt 0:04:55]} f5 {[%emt 0:05:44]} 19. Nb3 {[%emt 0:09:03]} fxe4 {[%emt 0:08:55]} 20. fxe4 {[%emt 0:01:16]} Qb8 {[%emt 0:02:26]} 21. Qa5 {[%emt 0:01:40]} Bc8 {[%emt 0:06:19]} 22. Rc7 {[%emt 0:03:13]} Nc4 {[%emt 0:04:01]} 23. Bxc4 {[%emt 0:01:16]} bxc4 {[%emt 0:00:06]} 24. Rxc4 {[%emt 0:01:51]} Bxb2 {[%emt 0:00:36]} 25. Rb4 {[%emt 0:01:19]} Qa8 {[%emt 0:03:33]} 26. Qc7 {[%emt 0:00:25]} a5 {[%emt 0:01:21]} 27. Nxa5 {[%emt 0:04:12]} Bf6 {[%emt 0:04:43]} 28. Ba7 {[%emt 0:00:47]} Ba6 {[%emt 0:01:11]} 29. Nc6 {[%emt 0:04:34]} Qc8 {[%emt 0:06:05]} 30. Qxc8 {[%emt 0:01:59]} Rxc8 {[%emt 0:00:22]} 31. a4 {[%emt 0:00:13]} e6 {[%emt 0:03:43]} 32. a5 {[%emt 0:01:43]} exd5 {[%emt 0:00:25]} 33. exd5 {[%emt 0:00:15]} Re8 {[%emt 0:02:34]} 34. Rb8 {[%emt 0:01:16]} Kf7 {[%emt 0:03:00]} 35. Rxe8 {[%emt 0:01:12]} Kxe8 {[%emt 0:00:03]} 36. Kf2 {[%emt 0:01:36]} Bc4 {[%emt 0:01:40]} 37. Bb8 {[%emt 0:03:17]} Kd7 {[%emt 0:01:55]} 38. Na7 {[%emt 0:08:25]} 1/2-1/2

[Event "Chinese Championship-B Women 2024"]
[Site "Liaocheng"]
[Date "2024.04.24"]
[Round "2.13"]
[White "Liu, Tian Yi"]
[Black "Shi, Yige"]
[Result "1/2-1/2"]
[WhiteElo "1636"]
[BlackElo "1794"]
[PlyCount "63"]
[EventDate "2024.04.24"]
[EventType "swiss"]
[EventCountry "CHN"]
[TimeControl "5400+30"]

1. e4 {[%emt 1:31:00]} c5 {[%emt 0:00:03]} 2. Nf3 {[%emt 0:00:00]} d6 {[%emt 0:00:05]} 3. Bb5+ {[%emt 0:00:00]} Nd7 {[%emt 0:00:06]} 4. d4 {[%emt 0:00:00]} cxd4 {[%emt 0:00:12]} 5. Qxd4 {[%emt 0:00:00]} a6 {[%emt 0:01:20]} 6. Bxd7+ {[%emt 0:00:00]} Bxd7 {[%emt 0:00:05]} 7. O-O {[%emt 0:00:00]} Nf6 {[%emt 0:00:15]} 8. Nc3 {[%emt 0:00:00]} Bc6 {[%emt 0:02:45]} 9. Rd1 {[%emt 0:00:00]} g6 {[%emt 0:05:23]} 10. Qd3 {[%emt 0:00:00]} Qc8 {[%emt 0:05:22]} 11. Bg5 {[%emt 0:00:00]} Bg7 {[%emt 0:00:14]} 12. Nd5 {[%emt 0:00:00]} Bxd5 {[%emt 0:00:50]} 13. exd5 {[%emt 0:00:00]} O-O {[%emt 0:00:28]} 14. c4 {[%emt 0:00:00]} Qd7 {[%emt 0:07:18]} 15. Rac1 {[%emt 0:00:00]} b5 {[%emt 0:03:03]} 16. c5 {[%emt 0:00:00]} dxc5 {[%emt 0:00:07]} 17. Rxc5 {[%emt 0:00:00]} Rfd8 {[%emt 0:02:38]} 18. Bf4 {[%emt 0:00:00]} Qb7 {[%emt 0:04:42]} 19. h3 {[%emt 0:00:00]} Rac8 {[%emt 0:02:32]} 20. Rxc8 {[%emt 0:00:00]} Qxc8 {[%emt 0:00:06]} 21. Qb3 {[%emt 0:00:00]} Qf5 {[%emt 0:00:18]} 22. Be5 {[%emt 0:00:00]} Ne4 {[%emt 0:04:04]} 23. Bxg7 {[%emt 0:00:00]} Kxg7 {[%emt 0:00:06]} 24. Qb4 {[%emt 0:00:00]} Rxd5 {[%emt 0:12:55]} 25. Rxd5 {[%emt 0:00:00]} Qxd5 {[%emt 0:00:05]} 26. Qxe7 {[%emt 0:00:00]} Qd1+ {[%emt 0:01:47]} 27. Kh2 {[%emt 0:00:00]} Qd5 {[%emt 0:00:22]} 28. Kg1 {[%emt 0:00:00]} Qd1+ {[%emt 0:03:10]} 29. Kh2 {[%emt 0:00:00]} Qd6+ {[%emt 0:00:03]} 30. Qxd6 {[%emt 0:00:00]} Nxd6 {[%emt 0:00:05]} 31. Nd4 {[%emt 0:00:00]} Kf6 {[%emt 0:01:15]} 32. f4 {[%emt 0:01:00]} 1/2-1/2

[Event "Chinese Championship-B Women 2024"]
[Site "Liaocheng"]
[Date "2024.04.24"]
[Round "2.14"]
[White "Xue, Shixuan"]
[Black "Yang, Shufan"]
[Result "1/2-1/2"]
[WhiteElo "1790"]
[BlackElo "1627"]
[PlyCount "118"]
[EventDate "2024.04.24"]
[EventType "swiss"]
[EventCountry "CHN"]
[TimeControl "5400+30"]

1. e4 {[%emt 0:01:10]} c5 {[%emt 0:00:10]} 2. Nf3 {[%emt 0:00:42]} d6 {[%emt 0:00:05]} 3. d4 {[%emt 0:00:08]} cxd4 {[%emt 0:00:04]} 4. Nxd4 {[%emt 0:00:04]} Nf6 {[%emt 0:00:04]} 5. Nc3 {[%emt 0:00:12]} a6 {[%emt 0:00:06]} 6. h3 {[%emt 0:01:35]} e6 {[%emt 0:00:06]} 7. g4 {[%emt 0:00:50]} Be7 {[%emt 0:00:45]} 8. Bg2 {[%emt 0:04:43]} Qc7 {[%emt 0:01:45]} 9. Be3 {[%emt 0:05:25]} Nc6 {[%emt 0:03:09]} 10. g5 {[%emt 0:04:35]} Nd7 {[%emt 0:00:30]} 11. f4 {[%emt 0:04:18]} Nc5 {[%emt 0:04:51]} 12. Nb3 {[%emt 0:05:29]} Nxb3 {[%emt 0:03:24]} 13. cxb3 {[%emt 0:01:21]} b5 {[%emt 0:02:48]} 14. Rc1 {[%emt 0:01:16]} Bb7 {[%emt 0:00:40]} 15. O-O {[%emt 0:03:48]} Qd8 {[%emt 0:03:09]} 16. Qg4 {[%emt 0:07:24]} Rc8 {[%emt 0:04:19]} 17. Rfd1 {[%emt 0:08:01]} O-O {[%emt 0:10:14]} 18. e5 {[%emt 0:09:33]} d5 {[%emt 0:01:56]} 19. Ne4 {[%emt 0:01:05]} Qc7 {[%emt 0:05:16]} 20. Nc5 {[%emt 0:09:25]} Rfd8 {[%emt 0:02:15]} 21. Qg3 {[%emt 0:07:49]} Bxc5 {[%emt 0:10:49]} 22. Bxc5 {[%emt 0:00:41]} Ne7 {[%emt 0:01:16]} 23. Qf2 {[%emt 0:02:12]} Qd7 {[%emt 0:01:19]} 24. Kh2 {[%emt 0:03:50]} Rc6 {[%emt 0:04:31]} 25. b4 {[%emt 0:01:07]} Rdc8 {[%emt 0:01:45]} 26. Rc3 {[%emt 0:01:00]} Qe8 {[%emt 0:03:49]} 27. Bf3 {[%emt 0:01:38]} Ra8 {[%emt 0:08:28]} 28. Rdc1 {[%emt 0:01:55]} Rac8 {[%emt 0:02:43]} 29. Bg4 {[%emt 0:00:54]} Ng6 {[%emt 0:00:17]} 30. Qd4 {[%emt 0:01:21]} Qd7 {[%emt 0:02:28]} 31. Rf1 {[%emt 0:01:49]} Qd8 {[%emt 0:01:23]} 32. a3 {[%emt 0:00:36]} Ra8 {[%emt 0:01:50]} 33. Rfc1 {[%emt 0:01:10]} Qd7 {[%emt 0:01:59]} 34. Kg3 {[%emt 0:01:01]} Rac8 {[%emt 0:01:00]} 35. h4 {[%emt 0:00:52]} Ne7 {[%emt 0:00:20]} 36. h5 {[%emt 0:01:42]} R6c7 {[%emt 0:01:24]} 37. Qd3 {[%emt 0:01:06]} Rc6 {[%emt 0:01:28]} 38. Kf2 {[%emt 0:01:26]} R6c7 {[%emt 0:00:58]} 39. Ke2 {[%emt 0:01:03]} Rc6 {[%emt 0:03:23]} 40. Qd4 {[%emt 0:00:41]} R6c7 {[%emt 0:00:40]} 41. Bxe7 {[%emt 0:02:21]} Qxe7 {[%emt 0:00:07]} 42. Qb6 {[%emt 0:00:47]} Rxc3 {[%emt 0:01:35]} 43. Rxc3 {[%emt 0:00:03]} Rxc3 {[%emt 0:02:06]} 44. bxc3 {[%emt 0:00:01]} Qd7 {[%emt 0:00:11]} 45. Kd2 {[%emt 0:00:47]} Kf8 {[%emt 0:01:10]} 46. Be2 {[%emt 0:01:15]} g6 {[%emt 0:02:14]} 47. Ke3 {[%emt 0:01:15]} Ke8 {[%emt 0:01:00]} 48. Kd4 {[%emt 0:00:15]} Qc8 {[%emt 0:00:56]} 49. Qc5 {[%emt 0:01:51]} Qd7 {[%emt 0:00:28]} 50. Qb6 {[%emt 0:00:35]} Qc8 {[%emt 0:00:11]} 51. h6 {[%emt 0:00:04]} Qd7 {[%emt 0:01:40]} 52. a4 {[%emt 0:00:21]} bxa4 {[%emt 0:01:59]} 53. Bxa6 {[%emt 0:00:12]} Bxa6 {[%emt 0:00:03]} 54. Qxa6 {[%emt 0:00:03]} Kd8 {[%emt 0:00:36]} 55. b5 {[%emt 0:00:29]} a3 {[%emt 0:01:01]} 56. b6 {[%emt 0:01:55]} Qc6 {[%emt 0:01:13]} 57. Kd3 {[%emt 0:01:02]} a2 {[%emt 0:00:33]} 58. Qxa2 {[%emt 0:00:40]} Qxb6 {[%emt 0:00:04]} 59. Qa8+ {[%emt 0:00:12]} Ke7 {[%emt 0:00:23]} 1/2-1/2

[Event "Chinese Championship-B Women 2024"]
[Site "Liaocheng"]
[Date "2024.04.24"]
[Round "2.15"]
[White "Wang, Jingyan"]
[Black "Wang, Yi(Bj)"]
[Result "0-1"]
[WhiteElo "1632"]
[BlackElo "1782"]
[PlyCount "86"]
[EventDate "2024.04.24"]
[EventType "swiss"]
[EventCountry "CHN"]
[TimeControl "5400+30"]

1. d4 {[%emt 0:03:35]} d5 {[%emt 0:00:01]} 2. Bf4 {[%emt 0:00:11]} Nf6 {[%emt 0:00:03]} 3. e3 {[%emt 0:00:24]} c5 {[%emt 0:00:12]} 4. c3 {[%emt 0:00:08]} Nc6 {[%emt 0:00:05]} 5. Nf3 {[%emt 0:00:19]} Qb6 {[%emt 0:00:47]} 6. Qc2 {[%emt 0:00:55]} g6 {[%emt 0:01:44]} 7. Be2 {[%emt 0:02:12]} Bf5 {[%emt 0:00:10]} 8. Qc1 {[%emt 0:00:46]} Bg7 {[%emt 0:00:42]} 9. Nbd2 {[%emt 0:00:26]} O-O {[%emt 0:01:06]} 10. O-O {[%emt 0:01:01]} Rac8 {[%emt 0:00:52]} 11. a3 {[%emt 0:03:46]} c4 {[%emt 0:02:12]} 12. Ne5 {[%emt 0:09:19]} h5 {[%emt 0:03:30]} 13. h4 {[%emt 0:01:54]} Qd8 {[%emt 0:05:12]} 14. Bd1 {[%emt 0:04:21]} Nd7 {[%emt 0:04:41]} 15. Nxd7 {[%emt 0:01:16]} Qxd7 {[%emt 0:00:05]} 16. Bc2 {[%emt 0:00:26]} Bxc2 {[%emt 0:01:23]} 17. Qxc2 {[%emt 0:00:02]} Qg4 {[%emt 0:00:07]} 18. Nf3 {[%emt 0:08:32]} Rfe8 {[%emt 0:03:37]} 19. Rad1 {[%emt 0:01:11]} b5 {[%emt 0:09:13]} 20. Rfe1 {[%emt 0:04:54]} Qf5 {[%emt 0:07:43]} 21. Qe2 {[%emt 0:05:40]} a5 {[%emt 0:01:47]} 22. g3 {[%emt 0:01:01]} e6 {[%emt 0:08:27]} 23. e4 {[%emt 0:01:51]} dxe4 {[%emt 0:00:01]} 24. Qxe4 {[%emt 0:00:21]} Qxe4 {[%emt 0:00:02]} 25. Rxe4 {[%emt 0:00:06]} Ne7 {[%emt 0:00:13]} 26. Rde1 {[%emt 0:01:05]} Nd5 {[%emt 0:00:34]} 27. Bd2 {[%emt 0:01:14]} Rb8 {[%emt 0:07:44]} 28. Ne5 {[%emt 0:01:36]} Bxe5 {[%emt 0:02:00]} 29. dxe5 {[%emt 0:01:14]} Red8 {[%emt 0:01:43]} 30. Rd4 {[%emt 0:00:46]} Nb6 {[%emt 0:02:51]} 31. Ree4 {[%emt 0:02:56]} Na4 {[%emt 0:05:39]} 32. Bc1 {[%emt 0:00:16]} Nc5 {[%emt 0:01:05]} 33. Rxd8+ {[%emt 0:03:13]} Rxd8 {[%emt 0:00:02]} 34. Rd4 {[%emt 0:00:09]} Rd5 {[%emt 0:00:26]} 35. Be3 {[%emt 0:03:02]} Nd3 {[%emt 0:02:41]} 36. a4 {[%emt 0:01:09]} Rxd4 {[%emt 0:01:03]} 37. cxd4 {[%emt 0:01:09]} bxa4 {[%emt 0:00:05]} 38. Bd2 {[%emt 0:00:06]} Nxb2 {[%emt 0:00:18]} 39. Bxa5 {[%emt 0:00:04]} a3 {[%emt 0:00:14]} 40. Bc3 {[%emt 0:00:17]} Nd1 {[%emt 0:00:02]} 41. Ba1 {[%emt 0:00:14]} c3 {[%emt 0:00:01]} 42. Kf1 {[%emt 0:00:24]} c2 {[%emt 0:00:02]} 43. Ke2 {[%emt 0:00:07]} c1=Q {[%emt 0:00:02]} 0-1

[Event "Chinese Championship-B Women 2024"]
[Site "Liaocheng"]
[Date "2024.04.24"]
[Round "3.1"]
[White "Wang, Yi(Bj)"]
[Black "Wang, Chuqiao"]
[Result "0-1"]
[WhiteElo "1782"]
[BlackElo "2302"]
[PlyCount "94"]
[EventDate "2024.04.24"]
[EventType "swiss"]
[EventCountry "CHN"]
[TimeControl "5400+30"]

1. e4 {[%emt 0:00:11]} e5 {[%emt 0:00:07]} 2. Nc3 {[%emt 0:00:10]} Nc6 {[%emt 0:00:05]} 3. Nf3 {[%emt 0:00:09]} Nf6 {[%emt 0:00:17]} 4. a3 {[%emt 0:00:16]} Bc5 {[%emt 0:04:48]} 5. Nxe5 {[%emt 0:00:28]} Nxe5 {[%emt 0:05:11]} 6. d4 {[%emt 0:00:02]} Bxd4 {[%emt 0:06:40]} 7. Qxd4 {[%emt 0:00:06]} d6 {[%emt 0:00:16]} 8. Be3 {[%emt 0:01:17]} Nc6 {[%emt 0:02:18]} 9. Qd2 {[%emt 0:00:54]} Qe7 {[%emt 0:02:53]} 10. f3 {[%emt 0:01:25]} a6 {[%emt 0:01:15]} 11. O-O-O {[%emt 0:00:53]} Be6 {[%emt 0:03:29]} 12. Bg5 {[%emt 0:13:53]} h6 {[%emt 0:06:20]} 13. Nd5 {[%emt 0:03:04]} Bxd5 {[%emt 0:00:19]} 14. exd5 {[%emt 0:00:02]} Ne5 {[%emt 0:00:35]} 15. Bh4 {[%emt 0:01:44]} O-O {[%emt 0:01:03]} 16. Re1 {[%emt 0:03:49]} Qd8 {[%emt 0:00:31]} 17. Be2 {[%emt 0:00:19]} Ng6 {[%emt 0:01:34]} 18. Bf2 {[%emt 0:02:47]} c6 {[%emt 0:01:22]} 19. dxc6 {[%emt 0:13:11]} bxc6 {[%emt 0:00:06]} 20. g4 {[%emt 0:00:39]} Nd5 {[%emt 0:05:16]} 21. h4 {[%emt 0:08:00]} Qf6 {[%emt 0:10:52]} 22. c4 {[%emt 0:04:41]} Ndf4 {[%emt 0:01:03]} 23. Bg3 {[%emt 0:14:54]} Nxe2+ {[%emt 0:04:02]} 24. Qxe2 {[%emt 0:00:03]} Rab8 {[%emt 0:00:43]} 25. Qd2 {[%emt 0:04:04]} Qxf3 {[%emt 0:12:52]} 26. Bxd6 {[%emt 0:00:02]} Rfd8 {[%emt 0:00:20]} 27. c5 {[%emt 0:00:08]} Ne5 {[%emt 0:09:46]} 28. Rhf1 {[%emt 0:17:54]} Qb3 {[%emt 0:00:35]} 29. Rxe5 {[%emt 0:04:29]} Qc4+ {[%emt 0:00:06]} 30. Qc3 {[%emt 0:00:02]} Qxf1+ {[%emt 0:00:47]} 31. Re1 {[%emt 0:00:01]} Qf2 {[%emt 0:01:38]} 32. Bxb8 {[%emt 0:00:54]} Rxb8 {[%emt 0:00:03]} 33. g5 {[%emt 0:05:33]} Qxh4 {[%emt 0:01:09]} 34. gxh6 {[%emt 0:00:02]} Qxh6+ {[%emt 0:00:20]} 35. Kb1 {[%emt 0:00:05]} Qg5 {[%emt 0:02:07]} 36. Re5 {[%emt 0:00:56]} Qf4 {[%emt 0:00:42]} 37. Ka2 {[%emt 0:00:28]} Qf6 {[%emt 0:03:09]} 38. Qe3 {[%emt 0:00:26]} g6 {[%emt 0:00:41]} 39. Qe2 {[%emt 0:00:40]} Kg7 {[%emt 0:00:26]} 40. Qh2 {[%emt 0:01:03]} Rd8 {[%emt 0:01:03]} 41. Re1 {[%emt 0:00:34]} Rh8 {[%emt 0:00:14]} 42. Qe2 {[%emt 0:00:11]} a5 {[%emt 0:00:27]} 43. Qd2 {[%emt 0:00:38]} a4 {[%emt 0:00:36]} 44. Re4 {[%emt 0:00:49]} Rh4 {[%emt 0:00:14]} 45. Rb4 {[%emt 0:00:31]} Qe6+ {[%emt 0:00:31]} 46. Kb1 {[%emt 0:00:22]} Rh1+ {[%emt 0:00:12]} 47. Kc2 {[%emt 0:00:00]} Qf5+ {[%emt 0:00:07]} 0-1

[Event "Chinese Championship-B Women 2024"]
[Site "Liaocheng"]
[Date "2024.04.24"]
[Round "3.2"]
[White "Shao, Qiyu"]
[Black "Jiang, Tianyu"]
[Result "1/2-1/2"]
[WhiteElo "1764"]
[BlackElo "1929"]
[PlyCount "60"]
[EventDate "2024.04.24"]
[EventType "swiss"]
[EventCountry "CHN"]
[TimeControl "5400+30"]

1. d4 {[%emt 0:06:48]} d5 {[%emt 0:00:17]} 2. c4 {[%emt 0:00:08]} e6 {[%emt 0:00:21]} 3. Nc3 {[%emt 0:00:06]} c6 {[%emt 0:00:06]} 4. Nf3 {[%emt 0:00:14]} Nf6 {[%emt 0:00:21]} 5. e3 {[%emt 0:00:08]} Nbd7 {[%emt 0:00:07]} 6. Qc2 {[%emt 0:00:25]} Bd6 {[%emt 0:01:06]} 7. g4 {[%emt 0:00:54]} Nxg4 {[%emt 0:16:15]} 8. Rg1 {[%emt 0:00:08]} Qf6 {[%emt 0:01:21]} 9. Rxg4 {[%emt 0:00:33]} Qxf3 {[%emt 0:00:50]} 10. Rxg7 {[%emt 0:00:07]} Nf8 {[%emt 0:07:22]} 11. Rg5 {[%emt 0:12:20]} h6 {[%emt 0:26:07]} 12. Rg2 {[%emt 0:00:18]} Bd7 {[%emt 0:14:40]} 13. e4 {[%emt 0:03:13]} dxe4 {[%emt 0:06:15]} 14. Qxe4 {[%emt 0:00:54]} Qxe4+ {[%emt 0:00:34]} 15. Nxe4 {[%emt 0:00:02]} Bb4+ {[%emt 0:07:50]} 16. Kd1 {[%emt 0:00:24]} Be7 {[%emt 0:05:57]} 17. Bd3 {[%emt 0:02:45]} Ng6 {[%emt 0:02:18]} 18. Be3 {[%emt 0:08:01]} O-O-O {[%emt 0:05:52]} 19. Kc2 {[%emt 0:02:00]} Nh4 {[%emt 0:01:35]} 20. Rgg1 {[%emt 0:01:05]} Be8 {[%emt 0:00:30]} 21. Kc3 {[%emt 0:04:39]} f5 {[%emt 0:00:39]} 22. Nc5 {[%emt 0:02:36]} Bxc5 {[%emt 0:00:31]} 23. dxc5 {[%emt 0:00:03]} e5 {[%emt 0:00:27]} 24. f4 {[%emt 0:06:06]} e4 {[%emt 0:00:12]} 25. Be2 {[%emt 0:00:01]} Nf3 {[%emt 0:00:13]} 26. Rg7 {[%emt 0:07:47]} Bh5 {[%emt 0:00:48]} 27. Rd1 {[%emt 0:05:57]} Rxd1 {[%emt 0:00:43]} 28. Bxd1 {[%emt 0:00:02]} Rd8 {[%emt 0:00:25]} 29. Be2 {[%emt 0:00:18]} Rd7 {[%emt 0:00:11]} 30. Rg3 {[%emt 0:03:30]} Bg4 {[%emt 0:00:09]} 1/2-1/2

[Event "Chinese Championship-B Women 2024"]
[Site "Liaocheng"]
[Date "2024.04.24"]
[Round "3.3"]
[White "Zhao, Chenyu"]
[Black "Sun, Jihan"]
[Result "0-1"]
[WhiteElo "1909"]
[BlackElo "1781"]
[PlyCount "92"]
[EventDate "2024.04.24"]
[EventType "swiss"]
[EventCountry "CHN"]
[TimeControl "5400+30"]

1. e4 {[%emt 0:00:04]} c5 {[%emt 0:00:03]} 2. Nf3 {[%emt 0:00:06]} Nc6 {[%emt 0:00:04]} 3. Bb5 {[%emt 0:00:26]} g6 {[%emt 0:00:05]} 4. O-O {[%emt 0:00:11]} Bg7 {[%emt 0:00:02]} 5. c3 {[%emt 0:00:09]} Nf6 {[%emt 0:00:13]} 6. Re1 {[%emt 0:00:05]} O-O {[%emt 0:00:05]} 7. d4 {[%emt 0:00:25]} d5 {[%emt 0:00:25]} 8. e5 {[%emt 0:00:09]} Ne4 {[%emt 0:00:08]} 9. Be3 {[%emt 0:00:13]} Qb6 {[%emt 0:00:28]} 10. Bxc6 {[%emt 0:00:59]} bxc6 {[%emt 0:00:20]} 11. Qc1 {[%emt 0:00:31]} cxd4 {[%emt 0:00:41]} 12. cxd4 {[%emt 0:00:05]} a5 {[%emt 0:00:24]} 13. Nbd2 {[%emt 0:02:34]} Nxd2 {[%emt 0:15:35]} 14. Nxd2 {[%emt 0:00:35]} a4 {[%emt 0:00:15]} 15. b4 {[%emt 0:03:53]} Bf5 {[%emt 0:22:00]} 16. a3 {[%emt 0:05:45]} f6 {[%emt 0:01:38]} 17. exf6 {[%emt 0:06:58]} exf6 {[%emt 0:01:44]} 18. Qc3 {[%emt 0:04:56]} Rfe8 {[%emt 0:04:22]} 19. Rec1 {[%emt 0:07:25]} Re6 {[%emt 0:01:41]} 20. Nf3 {[%emt 0:07:56]} Bg4 {[%emt 0:02:38]} 21. Ne1 {[%emt 0:00:40]} Be2 {[%emt 0:01:10]} 22. Nd3 {[%emt 0:16:47]} Bxd3 {[%emt 0:00:07]} 23. Qxd3 {[%emt 0:00:02]} f5 {[%emt 0:01:19]} 24. Rc5 {[%emt 0:01:48]} Rae8 {[%emt 0:20:10]} 25. g3 {[%emt 0:01:58]} Bf8 {[%emt 0:12:55]} 26. Ra5 {[%emt 0:02:54]} Re4 {[%emt 0:00:29]} 27. Rxa4 {[%emt 0:02:01]} Bg7 {[%emt 0:02:39]} 28. Ra6 {[%emt 0:02:08]} Qb7 {[%emt 0:05:27]} 29. Rc1 {[%emt 0:04:46]} R8e6 {[%emt 0:00:44]} 30. Ra5 {[%emt 0:09:21]} h6 {[%emt 0:03:57]} 31. Qa6 {[%emt 0:03:50]} Qe7 {[%emt 0:01:35]} 32. Qc8+ {[%emt 0:07:17]} Kh7 {[%emt 0:00:21]} 33. Ra8 {[%emt 0:00:31]} g5 {[%emt 0:00:10]} 34. Kh1 {[%emt 0:03:33]} Rf6 {[%emt 0:02:38]} 35. Qg8+ {[%emt 0:02:38]} Kg6 {[%emt 0:00:03]} 36. Bd2 {[%emt 0:02:08]} Re2 {[%emt 0:00:12]} 37. Bc3 {[%emt 0:00:57]} Qe4+ {[%emt 0:01:05]} 38. Kg1 {[%emt 0:00:01]} Qf3 {[%emt 0:00:35]} 39. Rf1 {[%emt 0:01:02]} Rf7 {[%emt 0:01:00]} 40. Ba1 {[%emt 0:00:58]} Rfe7 {[%emt 0:00:16]} 41. Rc8 {[%emt 0:01:19]} Rxf2 {[%emt 0:00:24]} 42. Rxc6+ {[%emt 0:00:25]} Kh5 {[%emt 0:00:04]} 43. Qf7+ {[%emt 0:00:47]} Rxf7 {[%emt 0:00:28]} 44. Rxf2 {[%emt 0:00:04]} Qd1+ {[%emt 0:00:40]} 45. Rf1 {[%emt 0:00:05]} Bxd4+ {[%emt 0:00:10]} 46. Kg2 {[%emt 0:00:09]} Qe2+ {[%emt 0:00:14]} 0-1